Workbook

Sheet Getting Started
A1: VIAVI Instrument Programming Tool - Getting Started
A3: Note: Option 847 must be installed on the test set for the VIP Tool™ to operate.
A4: To purchase Option 847, please contact a VIAVI Solutions Radio Test Sales Expert with your model and serial number.
A5: Find your closest Radio Test Sales Expert
A7: The VIP Tool™ provides a method to efficiently connect to a VIAVI instrument through an Ethernet socket and control the
A8: instrument using remote commands entered into the Scripts worksheet to control and receive data from the instrument.
A9: The commands can be placed in sequence to build an automated test routine.
A11: Warranties: The Viavi Instrument Programming Tool (“VIP Tool”) is provided “as-is.” There are no warranties, either express,
A12: implied, contractual, or statutory with respect to the merchantability or fitness applicable to the VIP Tool. The user agrees that no
A13: warranty has been expressed or implied by VIAVI and that the user understands that the VIP Tool is being provided “as-is.” The
A14: user hereby expressly waives any claim for incidental or consequential damages, including damages to connected equipment,
A15: from use of the VIP Tool.
A17: VIAVI VIP Tool License Agreement
A19: Table of Contents
A20: Introduction to the VIP Tool
A21: The VIP Tool Ribbon
A22: The Embedded Worksheets
A23: The Report Worksheets
A24: The Setup Worksheet
A25: The Script Worksheet
A26: The Results Data Worksheet
A27: The Trace Data Worksheet
A28: Editing and Executing a Script
A29: VIP Tool Resources
A30: VIAVI RCI Document Resources
A32: Introduction to the VIP Tool
A33: The VIP Tool provides a method to connect to and control a VIAVI instrument through a TCP/IP socket. The VIP Tool allows the
A34: user to create and edit a script that can then be used to programmatically perform automated tasks with the instrument.
A36: A script consists of RCI commands, which control the instrument, and VIAVI Instrument Programming keywords that are used to
A37: control the flow and output of the script.
A39: The VIAVI Instrument Programming Language provides syntax that allows responses from the tool to be sent and easily organized
A40: on a separate sheet within the VIP Tool workbook. An additional output of the VIP Tool is an organized sheet of trace data
A41: generated by the instrument when it is queried for such data. Trace data consists of the data that are used to create the various
A42: graphs displayed on the instrument such as Channel Analyzer, Oscilloscope, Distribution plots, etc.
A44: The VIP Tool currently supports operation with the VIAVI 3900 Series, 8800 Series and 3550 series of radio test sets.
A46: Back to Top
A48: The VIP Tool Ribbon
A49: The VIP Tool Ribbon contains the controls for operating the VIP Tool. The controls that appear on the ribbon are context
A50: specific, depending on which VIP Tool sheet is selected for view. For example, the Script sheet ribbon will contain all of the
A51: controls for creating, editing and debugging scripts. The Setup sheet ribbon will contain controls for setting up a connection to the
A52: instrument and for configuring paths to save and load various types of files. A report sheet ribbon will contain controls for editing
A53: report sheets, such as showing and hiding tags, and for saving the report to PDF or CSV formats.
A55: Back to Top
A57: The Embedded Worksheets
A58: The VIP Tool workbook contains of five embedded worksheets:
A59: 1. This Getting Started sheet.
A60: 2. The Setup worksheet is used to configure the connection to the instrument and set paths for files
A61: 3. The Script worksheet is used for editing and debugging the script.
A62: 4. The Results Data worksheet is used to monitor measurement data.
A63: 5. The Trace Data worksheet is used to store trace data returned from the instrument when a trace query command is executed.
A65: The Report Worksheets
A66: Unlike the embedded worksheets, Report worksheets are not write protected and can be freely edited, deleted and imported.
A67: Report sheets are intended for two functions: creating reports and reserving a sheet to perform Excel calculations used by the
A68: script. When first downloaded, the VIP Tool worksheet contains two report reports sheets - one sheet is named 'Calc' and the
A69: other sheet is named 'Report'. Other sheets can be imported using the Import XLS Sheet button on the Script sheet Tool Ribbon.
A71: Back to Top
A73: The Setup Worksheet
A74: The Setup Worksheet provides the means to configure the connection setup, default paths for various files, and whether a saved
A75: PDF report opens immediately in a local PDF viewer or is saved in the background. The title of test reports and which sheet
A76: will be saved as a report are also configured on the Setup Sheet.
A78: To configure the connection to an instrument, these steps must be followed:
A80: 1. Select the instrument model to connect to from the Select Model dropdown menu.
A81: 2. Enter the IP address of the instrument into the IP field. An example IP address is 10.10.10.104
A82: 3. The port number is automatically selected, based upon the model selected. However, if 39XX is selected as the model, be
A83: sure to check that its port number is set to the port number displayed in the 39XX Port Number field. The 39XX port number
A84: can be set to a different value on the instrument itself. There are instructions for checking the 39XX port number on the
A85: instrument on the Setup sheet.
A87: After entering values in either the IP Address or 39XX Port fields, be sure to press the ENTER key or click outside of the field
A88: to ensure the setting has been entered into the worksheet. Until the settings have been fully entered through this action, the VIP Tool
A89: cannot connect to the instrument.
A91: Once the IP address and Port number are configured, the Check Connection button on the VIP Tool Ribbon can be pressed
A92: to verify that the program is able to communicate with the instrument. If the connection is successful, it is verified by a message
A93: box, and the instrument serial number and software version will be displayed in the Serial Number and Software Version fields
A94: on the Setup worksheet. If, however, the VIP Tool cannot communicate with the instrument, the message "Connection
A95: Unsuccessful" will appear. It may take up to 20 seconds for this message to appear if the VIP Tool cannot succesfully connect
A96: to the instrument.
A99: Back to Top
A101: The Script Worksheet
A102: The Command and Argument Columns
A103: The Script worksheet is used for assembling sequences of commands, queries and keywords into a script, editing the script, and
A104: running the script. It consists of four columns. The number of rows for entering control commands is the maximum number of rows
A105: allowed by Excel.
A107: In general, SCPI RCI commands consist of a command and an argument to the command. As an example, the
A108: command :RF:GENerator:FREQuency 125 MHz consists of the command :RF:GENerator:FREQuency, which denotes what
A109: parameter is to be controlled (in this case, RF generator frequency) and the argument 125 MHz, which provides the value to assign
A110: to the RF generator frequency. The command :RF:GENerator:FREQuency should therefore be placed in the Command
A111: column, and its argument 125 MHz should be placed in the adjacent Argument column on the same row.
A113: An RCI query, which is used to request data from the instrument, may rarely optionally provide argument functionality, but, in general,
A114: no argument is required for a query. To follow the above example, :RF:GENerator:FREQuency? is the matching query to the RF
A115: generator command example; it is requesting the RF generator frequency value. This query has no argument, so
A116: :RF:GENerator:FREQuency? is entered into the command column, and its adjacent Argument row entry is left blank.
A118: Keywords are also entered into the command column. If a keyword requires or supports an argument, then the argument must also
A119: be entered into the argument column.
A121: The Reply Column
A122: In most cases, the Reply column will display all returned data from a query, in the format that it was received. Note that when a query
A123: is executed, the reply from the query, as well as the query command and argument, will also be copied to the Results Data
A124: worksheet. If the reply to the query contains multiple values separated by a comma, the Results Data worksheet will separate each
A125: individual datum into separate columns.
A127: Trace data, which is CSV data returned from a trace query, are not displayed in the Reply column; instead, the number of points or
A128: number of pairs of received trace data will be displayed in the Reply column. The trace data are copied to the Trace Data
A129: worksheet.
A131: Reply data are automatically erased each time a Script or a selected sequence of commands is executed.
A133: The Info Column
A134: The Info column is used to display information about a command, query or keyword executed on a row.
A135: If the instrument reports an error message, or if the program encounters an error, the Error column entry will display the error
A136: message. When the program encounters an error message, it stops execution on the step on which it encountered the error.
A138: Info messages are automatically erased each time a Script or a selected sequence of commands is executed.
A140: Back to Top
A142: The Results Data Worksheet
A143: Measurement reply data are the data returned by a query. On the Script worksheet, the data are recorded in the reply column.
A144: Measurement reply data, with the exception of trace data, are also recorded on the results data sheet. Trace data are a special
A145: category of reply data that are sent to the Trace Data worksheet (discussed below).
A147: Argument data supplied by the info keyword will also be copied to the Results Data worksheet.
A149: Measurement reply data can consist of a single datum, or as several data elements, separated by commas (termed Comma
A150: Separated Values or CSV). One function of the Results Data worksheet is to separate any CSV into separate columns to make
A151: accessing a particular datum in a CSV string an easier process.
A153: The data are separated out into specific columns on the Results Data worksheet:
A155: Column A contains the Date the data were requested from the instrument.
A156: Column B contains the Time the data were requested from the instrument.
A157: Column C contains the query command that was used to access the data.
A158: Column D will contain any argument that was used with the query.
A159: Column E will contain the first received datum. If the reply was a single datum, this will be the only column containing reply data.
A160: If the reply was CSV data, Column E will contain the first datum in the CSV string.
A161: Columns F and onward will each contain a single datum from any received CSV string, in the order of the data in the CSV string.
A163: Following the reply data, Column E will contain the total time the script or selected commands took to complete.
A165: If a trace query was sent, the data in Column E will indicate the number of points or pairs of data received by the trace query.
A166: Some trace data contain additional status byte or fail byte information. If the trace data contain that information, it will appear
A167: on the Results Data worksheet in addition to the number of points information.
A169: Results data are automatically erased each time a Script or a selected sequence of commands is executed.
A171: Back to Top
A173: The Trace Data Worksheet
A174: Trace data are data returned from a specific trace query. Trace data consist of Comma Separated Values (CSV). Trace data can
A175: consist of oscilloscope data, spectrum or channel analyzer data, or data from various graphs such as Distribution or Power Over
A176: Time, as examples.
A178: Trace data consist of two components: X Axis (horizontal) data, which can represent elements such as frequency or time,
A179: depending on the type of trace, and Y Axis (vertical) data, which generally represent some value of amplitude. When trace data are
A180: encountered by the program, the X axis and Y axis data are separated into two separate rows on the Trace Data worksheet. The
A181: "upper" row of a pair of trace data rows will contain the X axis values, and the "lower" row will contain the Y axis values. The trace
A182: data row pairs are separated from preceding or succeeding trace data row pairs by a blank row.
A184: The X axis data are separated into specific columns on the Trace Data worksheet:
A186: Column A contains the Date the trace data were requested from the instrument.
A187: Column B contains the Time the trace data were requested from the instrument.
A188: Column C contains the number of trace data elements returned (and therefore the number of trace data columns on the worksheet).
A189: Column D contains the X axis designation, and horizontal units of the X axis data.
A190: Column E is left blank. This makes it easier to select the trace data with the cntrl-A key combination provided by Excel.
A191: Columns F and higher contain the X axis trace data. The number of columns occupied by data is equal to the value in Column C.
A193: The Y axis data are separated into specific columns on the Trace Data worksheet:
A195: Column A contains the Date the trace data were requested from the instrument.
A196: Column B contains the Time the trace data were requested from the instrument.
A197: Column C contains the query command that was used to access the data.
A198: Column D contains the Y axis designation of the X axis data.
A199: Column E is left blank. This makes it easier to select the trace data with the cntrl-A key combination provided by Excel.
A200: Columns F and higher contain the Y axis trace data. The number of columns occupied by data is equal to number of X data values.
A202: Trace data are automatically erased each time a Script or a selected sequence of commands is executed.
A204: Note that X data are generally returned by most RCI commands. In the event that X data is not available for a specific trace query,
A205: the program calculates the X data and inserts it into the Trace Data worksheet.
A207: In the rare event that X data alone is available through a query, the program ignores the data and does not store it in the Trace Data
A208: worksheet when the query is sent as a commmand. When the Y data query is executed for the function, the program will
A209: automatically send the X data query, and store the X data results with the Y data in the format described above.
A211: Back to Top
A213: Editing and Executing a Script
A214: A script consists of a vertical sequence of RCI commands and program keywords entered into the Argument and Command
A215: of the Script worksheet.
A217: If more than one row of commands/keywords is selected for execution, the program will sequentially execute the commands or
A218: keywords until it reaches the end of the selection, encounters a blank entry in the command column, or encounters the end keyword.
A219: When a query is encountered, the return data will be displayed in the Reply column, and will be copied to the Results Data
A220: worksheet. In the case of a trace data query, the number of points of data will be reported in the reply column and the Results Data
A221: worksheet. Trace data will be copied to the Trace Data worksheet. If the row is 'commented out' by the "/" keyword, the program
A222: will not execute the row and will skip to the next row. If the program encounters an error message it will cease execution at the row
A223: where it encountered the error message.
A225: Note that only a single command can occupy a row. The program does not support concantenated commands. Any
A226: concantenation of multiple single commands on a single row will generate an error and the script will stop at that point.
A228: If a command is placed in the command column without a preceding colon, a preceding colon will automatically be appended to the
A229: command. This does not affect IEE-488 commands such as *OPC or *IDN?, nor will it affect keywords or commands that have
A230: been 'skipped' with the special "/" keyword.
A232: When the Run Script button is pressed, the program will start at row 2 of the command column and begin sequentially executing
A233: the script from that point. This allows a dedicated starting point for any script.
A235: When the Run From Here button is pressed, the program will start at the currently selected row and begin sequentially executing the
A236: the script from that point. This allows the user to test blocks of script without having to select the entire block to execute it, or for
A237: testing blocks of script that are separated from other portions of the script by a blank row or end keyword.
A239: To execute a single command, or a subset of contiguous commands in the script, select the command or subset of commands and
A240: press the Run Selected button. Only the selected command(s) will be executed. Note that if more than one command is selected,
A241: the selected commands must be contiguous.
A243: Pressing the Toggle Comments button will 'comment out' an uncommented row or selection of rows, or 'uncomment' a commented
A244: row or selection of rows. This function automates the placement of the '/' keyword. The program will skip any commented row
A245: and will not execute the command or keyword on that row.
A247: Pressing the Abort Execution button will halt execution of the script at its current position in the script.
A249: To insert one or more rows, press the Insert Rows button.
A251: To delete one or more rows, press the Delete Rows button.
A253: The contents of the Reply column, Info column, Results Data worksheet and Trace Data worksheet will be erased when the Clear
A254: Results button is pressed, or each time a script or selected sequence of commands is executed.
A256: The entire script and all results can be removed by pressing the Remove Script button.
A258: Note: There is no 'undo' function on the Scripts worksheet.
A260: Back to Top
A262: VIP Tool Resources
A263: VIAVI provides a number of resources at our website. On our VIP Tool website, you will find the VIP Tool Operations Manual
A264: which is a complete guide to using this tool, including a complete reference to the VIAVI Intrument Programming Language.
A265: The operations manual provides plenty of examples of using the langugage in the VIP Tool. Also on our VIP Tool website
A266: there are videos, sample scripts, sample reports and more to get you started on your VIP Tool project.
A268: VIP Tool Resources
... 23 more rows

Sheet Setup
H1: Calc | K1: 1234
B2: Select Model: | C2: 88XX | H2: Test Specs
B3: =C2 & " " & "IP Address:" -> 88XX IP Address: | H3: Report
B5: =C2 & " " & "Port Number:" -> 88XX Port Number: | C5: 9991
B8: Serial Number | E8: Test Name
B9: Software Version | E9: Report Sheet | F9: Report
E10: Open PDF Report On Save | G10: Off
B13: After entering settings, press the ENTER key or click outside of the | E13: Report PDF File Path
B14: entry field to complete entry.
B16: The default 39XX Port Number is 1234. If the port number has been | E16: Report CSV File Path
B17: changed from the default value on the instrument, the 39XX Port Number
B18: field on this page must be set to match the port number on the instrument.
E19: Script File Path
B20: Steps To verify the port number on the 39XX instrument:
B22: 1. Press the UTILS key. | E22: Script Module File Path
B23: 2. Select 'Hardware Settings'
B24: 3. Select 'Remote' from the floating menu.
B25: 4. The port number will be displayed in the 'TCP/IP Port' Field on the | E25: Import/Export Sheet Path
B26: Remote menu.

Sheet Script
A1: Command | B1: Argument | C1: Reply | D1: Info Message
A2: #############################
A3: # This Script can test Digital Mode radios for
A4: # P25 Phase 1, DMR, NXDN 9600 and NXDN 4800
A5: #############################
A6: Sub | B6: Begin
A7: Select_Cell | B7: (Report_A1)
A8: *idn? | B8: [TestUnit]=Reply3
A9: close_socket
A10: # Store Current Test Selections and Radio SN
A11: For | B11: 1 to 7
A12: If | B12: <TS_NextCount>=""
A13: <TS_NextCount>= | B13: "-"
A14: EndIf
A15: [Temp_NextCount]= | B15: <TS_NextCount>
A16: Next
A17: [RadioSN]= | B17: <RadioSN>
A18: For | B18: 1 to 9
A19: If | B19: <CHSEL_NextCount>=""
A20: <CHSEL_NextCount>= | B20: "-"
A21: EndIf
A22: [CHSel_NextCount]= | B22: <CHSEL_NextCount>
A23: Next
A24: [TempCode]= | B24: <Code>
A25: # Clear all Tag Values to clear the Report Sheet
A26: Clear_tags
A27: Clear_Row | B27: 256 from (Report_A120)
A28: Clear_Row | B28: 256 from (Report_A121)
A29: # Restore the saved Test Selections and Radio SN
A30: For | B30: 1 to 7
A31: <TS_NextCount>= | B31: [Temp_NextCount]
A32: Next
A33: Start_Timer_1 | B33: <StartTime>=Reply
A34: <RadioSN>= | B34: [RadioSN]
A35: <TestUnit>= | B35: [TestUnit]
A36: <Code>= | B36: [TempCode]
A37: For | B37: 1 to 9
A38: <CHSEL_NextCount>= | B38: [CHSel_NextCount]
A39: Next
A40: # Find the selected Band and Read the Frequencies and specs from the Test Specs Sheet
A41: RunSub | B41: Read_Band_Frequencies
A42: open_socket
A43: # If Run Tests is selected, Execute the selected tests
A44: If | B44: (Report_Q9) = "Run Tests"
A45: Runsub | B45: Perform_Digital_Tests
A46: EndIf
A47: END
A48: EndSub
A50: Sub | B50: Read_Band_Frequencies
A51: [TargetBand]= | B51: (Report_Q6)
A52: Set_Counter1 | B52: 0
A53: for | B53: 1 to 100
A54: [CheckBand]= | B54: (Test Specs_A:nextcount)
A55: Inc_Counter1
A56: If | B56: [CheckBand]=[TargetBand]
A57: [Start]= | B57: Counter1
A58: NextCount | B58: 100
A59: EndIf
A60: next
A61: If | B61: Counter1=100
A62: Pause | B62: Plan not found
A63: End
A64: EndIf
A65: [Channels]= | B65: (Test Specs_C:Counter1)
A66: [Last]= | B66: [Start]+[Channels]
A67: [Last]= | B67: [Last]-1
A68: Set_Counter1 | B68: 0
A69: For | B69: [Start] to [Last]
A70: Inc_Counter1
A71: <RXFreq_Counter1>= | B71: (Test Specs_D:NextCount)
A72: <TXFreq_Counter1>= | B72: (Test Specs_E:NextCount)
A73: [PowerLL_Counter1]= | B73: (Test Specs_H:NextCount)
A74: [PowerUL_Counter1]= | B74: (Test Specs_I:NextCount)
A75: [FreqTolLL_Counter1]= | B75: (Test Specs_J:NextCount)
A76: [FreqTolUL_Counter1]= | B76: (Test Specs_K:NextCount)
A77: [ModFidTol_Counter1]= | B77: (Test Specs_L:NextCount)
A78: [SymLL_Counter1]= | B78: (Test Specs_O:NextCount)
A79: [SymUL_Counter1]= | B79: (Test Specs_P:NextCount)
A80: [TXBERSpec_Counter1]= | B80: (Test Specs_Q:NextCount)
A81: [RXClrTone_Counter1]= | B81: (Test Specs_R:NextCount)
A82: [RXTstLvl_Counter1]= | B82: (Test Specs_S:NextCount)
A83: [CLOffset_Counter1]= | B83: (Test Specs_T:NextCount)
A84: [CHSelMsg_Counter1]= | B84: (Test Specs_U:NextCount)
A85: [Coupling_Counter1]= | B85: (Test Specs_V:NextCount)
A86: [InputPort_Counter1]= | B86: (Test Specs_W:NextCount)
A87: [OutputPort_Counter1]= | B87: (Test Specs_X:NextCount)
A88: [CLOffsetOutput_Counter1]= | B88: (Test Specs_Y:NextCount)
A89: Next
A90: <TXFreqErr>= | B90: <TXFreq_Counter1>
A91: <Coupling>= | B91: [Coupling_Counter1]
A92: <Gen_Cable_Loss>= | B92: [CLOffsetOutput_Counter1]
A93: <Rec_Cable_Loss>= | B93: [CLOFfset_Counter1]
A94: <RX_Test_Level>= | B94: [RXTstLvl_Counter1]
A95: <Input_Port>= | B95: [InputPort_Counter1]
A96: <Output_Port>= | B96: [OutputPort_Counter1]
A97: EndSub
A99: # Beginning of Digital Radio Test Script
A100: #
A101: Sub | B101: Perform_Digital_Tests
A102: Start_Timer_1
A103: #Load the Digital system in case it is not loaded
A104: #
A105: Display_Message
A106: Message1 | B106: Loading System
A107: [SystemSetting]= | B107: (Report_Q12)
A108: RunSub | B108: Init_Digital_Receiver
A109: if | B109: [SystemSetting]=P25
A110: [System]= | B110: "P25"
A111: RunSub | B111: Select_P25_Generate_Mode
A112: RunSub | B112: Select_P25_Receive_Mode
A113: EndIf
A114: if | B114: [SystemSetting]=DMR
A115: [System]= | B115: "DMR"
A116: RunSub | B116: Select_DMR_Generate_Mode
A117: RunSub | B117: Select_DMR_Receive_Mode
A118: EndIf
A119: if | B119: [SystemSetting]=NXDN_9600
A120: [System]= | B120: "NXDN"
A121: [NXDNRate]= | B121: BPS9600
A122: RunSub | B122: Select_NXDN_Generate_9600_Mode
A123: RunSub | B123: Select_NXDN_9600_Receive_Mode
A124: EndIf
A125: if | B125: [SystemSetting]=NXDN_4800
A126: [System]= | B126: "NXDN"
A127: [NXDNRate]= | B127: BPS4800
A128: RunSub | B128: Select_NXDN_Generate_4800_Mode
A129: RunSub | B129: Select_NXDN_4800_Receive_Mode
A130: EndIf
A131: Close_Message
A132: #
A133: # Establish initial settings
A134: #
A135: RunSub | B135: Initial_Settings
A136: Set_Counter5 | B136: 0
A137: [TXTests]= | B137: 0
A138: For | B138: 1 to 5
A139: If | B139: <TS_NextCount>="X"
A140: [TXTests]= | B140: 1
A141: EndIf
A142: Next
A143: [LastTest]= | B143: 1
A144: For | B144: 1 to [Channels]
A145: Inc_Counter5
A146: RunSub | B146: SetPorts
A147: If | B147: <CHSel_Counter5>="X"
A148: [LastTest]= | B148: NextCount
A149: :Rec:Freq | B149: <TXFreq_Counter5>
A150: :Gen:ExtPad | B150: [CLOffsetOutput_Counter5]
A151: :Rec:ExtPad | B151: [CLOffset_Counter5]
A152: #
A153: #Prompt user with the Calculated Prompt from Calc Sheet I1 through I9
A154: #
A155: RunSub | B155: RF_Gen_Off
A156: If | B156: [TXTests]=1
A157: If | B157: [System] = "DMR"
A158: [TmpTX]= | B158: <TXFreq_Counter5>
A159: [TmpRX]= | B159: <RXFreq_Counter5>
A160: If | B160: [TmpTX] = [TmpRX]
A161: #Pattern 0=1031
A162: :c4fsk:tx:pattern | B162: 1,0
A163: RunSub | B163: RF_Gen_Off
A164: Else
A165: :c4fsk:tx:ColorCode | B165: <Code>
A166: :Gen:Freq | B166: <RXFreq_Counter5>
A167: RunSub | B167: RF_GEN_ON
A168: :Gen:Lvl:dbm | B168: -60
A169: # Select BR Pattern
A170: :c4fsk:tx:pattern | B170: 1,3
A171: EndIf
A172: EndIf
A173: Delay | B173: 3
A174: RunSub | B174: Wait_For_Transmit
A175: #Take the measurements
A176: # Don't unkey on the last channel
A177: If | B177: [System]= "P25"
A178: :c4fsk:rx:nac:val? | B178: <Code>=reply
A179: If | B179: <Code> != "---"
A180: [NacDec]= | B180: (Report_H11)
A181: :c4fsk:tx:NAC | B181: 0,[NacDec]
A182: EndIf
A183: EndIf
A184: If | B184: [System] = "DMR"
A185: :c4fsk:rx:color_code? | B185: <Code>=reply
A186: :c4fsk:tx:ColorCode | B186: <Code>
A187: :c4fsk:tx:chanid | B187: 16777215
A188: EndIf
A189: If | B189: [System]="NXDN"
A190: :c4fsk:rx:ran? | B190: <Code>=Reply
A191: :c4fsk:tx:nxdn:ran | B191: <Code>
A192: EndIf
A193: RunSub | B193: Measure_Digital
A194: RunSub | B194: Wait_For_No_Transmit
A195: EndIf
A196: Endif
A197: Next
A198: If | B198: <TS_7>="X"
A199: If | B199: [System] != "DMR"
A200: Set_Counter5 | B200: [LastTest]
A201: RunSub | B201: Wait_For_Transmit
A202: Display_Message
... 555 more rows

Sheet Results Data

Sheet Trace Data

Sheet Calc

Sheet Test Specs
A1: CH Plan | B1: Config | C1: CH's | D1: Radio RX | E1: Radio TX | F1: Power Target | G1: Power Tolerance (%) | H1: Power LL | I1: Power UL | J1: Frequency Tol (Hz) LL | K1: Frequency Tol (Hz) UL | L1: Mod Fidelity (%) | M1: Symbol Deviation | N1: Tol (%) | O1: LL | P1: UL | Q1: TX BER | R1: RX Clear Tone | S1: RX Test Level | T1: Rec Cable Loss | U1: Channel Select Msg | V1: Coupling | W1: Input Port | X1: Output Port | Y1: Gen Cable Loss
A2: 1 | B2: VHF | C2: 6 | D2: 136.075 | E2: 136.025 | F2: 6.2 | G2: 10 | H2: =F2-(F2*(G2/100)) -> 5.58 | I2: =F2+(F2*(G2/100)) -> 6.82 | J2: -150 | K2: 150 | L2: 5 | M2: 1800 | N2: 10 | O2: =M2-(M2*(N2/100)) -> 1620 | P2: =M2+(M2*(N2/100)) -> 1980 | Q2: 5 | R2: Yes | S2: -116 | T2: -0.15 | U2: Select AST / CH 1 | V2: Cable | W2: TR | X2: TR | Y2: -0.15
D3: 142.075 | E3: 142.125 | F3: 6.2 | G3: 10 | H3: =F3-(F3*(G3/100)) -> 5.58 | I3: =F3+(F3*(G3/100)) -> 6.82 | J3: -150 | K3: 150 | L3: 5 | M3: 1800 | N3: 10 | O3: 1620 | P3: 1980 | Q3: 5 | R3: Yes | S3: -116 | T3: -0.15 | U3: Select AST / CH 2 | V3: Cable | W3: TR | X3: TR | Y3: -0.15
D4: 154.275 | E4: 154.225 | F4: 6.2 | G4: 10 | H4: 5.58 | I4: 6.82 | J4: -150 | K4: 150 | L4: 5 | M4: 1800 | N4: 10 | O4: 1620 | P4: 1980 | Q4: 5 | R4: Yes | S4: -116 | T4: -0.15 | U4: Select AST / CH 3 | V4: Cable | W4: TR | X4: TR | Y4: -0.15
D5: 160.175 | E5: 160.125 | F5: 6.2 | G5: 10 | H5: 5.58 | I5: 6.82 | J5: -150 | K5: 150 | L5: 5 | M5: 1800 | N5: 10 | O5: 1620 | P5: 1980 | Q5: 5 | R5: Yes | S5: -116 | T5: -0.15 | U5: Select AST / CH 4 | V5: Cable | W5: TR | X5: TR | Y5: -0.15
D6: 168.125 | E6: 168.075 | F6: 6.2 | G6: 10 | H6: 5.58 | I6: 6.82 | J6: -150 | K6: 150 | L6: 5 | M6: 1800 | N6: 10 | O6: 1620 | P6: 1980 | Q6: 5 | R6: Yes | S6: -116 | T6: -0.15 | U6: Select AST / CH 5 | V6: Cable | W6: TR | X6: TR | Y6: -0.15
D7: 173.925 | E7: 173.975 | F7: 6.2 | G7: 10 | H7: 5.58 | I7: 6.82 | J7: -150 | K7: 150 | L7: 5 | M7: 1800 | N7: 10 | O7: 1620 | P7: 1980 | Q7: 5 | R7: Yes | S7: -116 | T7: -0.15 | U7: Select AST / CH 6 | V7: Cable | W7: TR | X7: TR | Y7: -0.15
A9: 2 | B9: UHF1 | C9: 8 | D9: 380.075 | E9: 380.025 | F9: 5.3 | G9: 10 | H9: =F9-(F9*(G9/100)) -> 4.77 | I9: =F9+(F9*(G9/100)) -> 5.83 | J9: -150 | K9: 150 | L9: 5 | M9: 1800 | N9: 10 | O9: 1620 | P9: 1980 | Q9: 5 | R9: Yes | S9: -116 | T9: -0.31 | U9: Select AST / CH 1 | V9: Cable | W9: TR | X9: TR | Y9: -0.31
D10: 395.075 | E10: 395.025 | F10: 5.3 | G10: 10 | H10: 4.77 | I10: 5.83 | J10: -150 | K10: 150 | L10: 5 | M10: 1800 | N10: 10 | O10: 1620 | P10: 1980 | Q10: 5 | R10: Yes | S10: -116 | T10: -0.31 | U10: Select AST / CH 2 | V10: Cable | W10: TR | X10: TR | Y10: -0.31
D11: 410.075 | E11: 410.025 | F11: 5.3 | G11: 10 | H11: 4.77 | I11: 5.83 | J11: -150 | K11: 150 | L11: 5 | M11: 1800 | N11: 10 | O11: 1620 | P11: 1980 | Q11: 5 | R11: Yes | S11: -116 | T11: -0.31 | U11: Select AST / CH 3 | V11: Cable | W11: TR | X11: TR | Y11: -0.31
D12: 424.975 | E12: 424.925 | F12: 5.3 | G12: 10 | H12: 4.77 | I12: 5.83 | J12: -150 | K12: 150 | L12: 5 | M12: 1800 | N12: 10 | O12: 1620 | P12: 1980 | Q12: 5 | R12: Yes | S12: -116 | T12: -0.31 | U12: Select AST / CH 4 | V12: Cable | W12: TR | X12: TR | Y12: -0.31
D13: 425.075 | E13: 425.025 | F13: 5.3 | G13: 10 | H13: 4.77 | I13: 5.83 | J13: -150 | K13: 150 | L13: 5 | M13: 1800 | N13: 10 | O13: 1620 | P13: 1980 | Q13: 5 | R13: Yes | S13: -116 | T13: -0.31 | U13: Select AST / CH 5 | V13: Cable | W13: TR | X13: TR | Y13: -0.31
D14: 440.075 | E14: 440.025 | F14: 5.3 | G14: 10 | H14: 4.77 | I14: 5.83 | J14: -150 | K14: 150 | L14: 5 | M14: 1800 | N14: 10 | O14: 1620 | P14: 1980 | Q14: 5 | R14: Yes | S14: -116 | T14: -0.31 | U14: Select AST / CH 6 | V14: Cable | W14: TR | X14: TR | Y14: -0.31
D15: 455.375 | E15: 455.325 | F15: 5.3 | G15: 10 | H15: 4.77 | I15: 5.83 | J15: -150 | K15: 150 | L15: 5 | M15: 1800 | N15: 10 | O15: 1620 | P15: 1980 | Q15: 5 | R15: Yes | S15: -116 | T15: -0.31 | U15: Select AST / CH 7 | V15: Cable | W15: TR | X15: TR | Y15: -0.31
D16: 469.975 | E16: 469.925 | F16: 5.3 | G16: 10 | H16: 4.77 | I16: 5.83 | J16: -150 | K16: 150 | L16: 5 | M16: 1800 | N16: 10 | O16: 1620 | P16: 1980 | Q16: 5 | R16: Yes | S16: -116 | T16: -0.31 | U16: Select AST / CH 8 | V16: Cable | W16: TR | X16: TR | Y16: -0.31
A18: 3 | B18: UHF2 | C18: 8 | D18: 450.075 | E18: 450.025 | F18: 5.3 | G18: 10 | H18: =F18-(F18*(G18/100)) -> 4.77 | I18: =F18+(F18*(G18/100)) -> 5.83 | J18: -150 | K18: 150 | L18: 5 | M18: 1800 | N18: 10 | O18: 1620 | P18: 1980 | Q18: 5 | R18: Yes | S18: -116 | T18: -0.31 | U18: Select AST / CH 1 | V18: Cable | W18: TR | X18: TR | Y18: -0.31
D19: 460.075 | E19: 460.025 | F19: 5.3 | G19: 10 | H19: 4.77 | I19: 5.83 | J19: -150 | K19: 150 | L19: 5 | M19: 1800 | N19: 10 | O19: 1620 | P19: 1980 | Q19: 5 | R19: Yes | S19: -116 | T19: -0.31 | U19: Select AST / CH 2 | V19: Cable | W19: TR | X19: TR | Y19: -0.31
D20: 471.075 | E20: 471.025 | F20: 5.3 | G20: 10 | H20: 4.77 | I20: 5.83 | J20: -150 | K20: 150 | L20: 5 | M20: 1800 | N20: 10 | O20: 1620 | P20: 1980 | Q20: 5 | R20: Yes | S20: -116 | T20: -0.31 | U20: Select AST / CH 3 | V20: Cable | W20: TR | X20: TR | Y20: -0.31
D21: 484.925 | E21: 484.975 | F21: 5.3 | G21: 10 | H21: 4.77 | I21: 5.83 | J21: -150 | K21: 150 | L21: 5 | M21: 1800 | N21: 10 | O21: 1620 | P21: 1980 | Q21: 5 | R21: Yes | S21: -116 | T21: -0.31 | U21: Select AST / CH 4 | V21: Cable | W21: TR | X21: TR | Y21: -0.31
D22: 485.075 | E22: 485.025 | F22: 5.3 | G22: 10 | H22: 4.77 | I22: 5.83 | J22: -150 | K22: 150 | L22: 5 | M22: 1800 | N22: 10 | O22: 1620 | P22: 1980 | Q22: 5 | R22: Yes | S22: -116 | T22: -0.31 | U22: Select AST / CH 5 | V22: Cable | W22: TR | X22: TR | Y22: -0.31
D23: 495.075 | E23: 495.025 | F23: 5.3 | G23: 10 | H23: 4.77 | I23: 5.83 | J23: -150 | K23: 150 | L23: 5 | M23: 1800 | N23: 10 | O23: 1620 | P23: 1980 | Q23: 5 | R23: Yes | S23: -116 | T23: -0.31 | U23: Select AST / CH 6 | V23: Cable | W23: TR | X23: TR | Y23: -0.31
D24: 506.075 | E24: 506.025 | F24: 5.3 | G24: 10 | H24: 4.77 | I24: 5.83 | J24: -150 | K24: 150 | L24: 5 | M24: 1800 | N24: 10 | O24: 1620 | P24: 1980 | Q24: 5 | R24: Yes | S24: -116 | T24: -0.31 | U24: Select AST / CH 7 | V24: Cable | W24: TR | X24: TR | Y24: -0.31
D25: 519.925 | E25: 519.975 | F25: 5.3 | G25: 10 | H25: 4.77 | I25: 5.83 | J25: -150 | K25: 150 | L25: 5 | M25: 1800 | N25: 10 | O25: 1620 | P25: 1980 | Q25: 5 | R25: Yes | S25: -116 | T25: -0.31 | U25: Select AST / CH 8 | V25: Cable | W25: TR | X25: TR | Y25: -0.31
A27: 4 | B27: 7-800 | C27: 9 | D27: 764.0625 | E27: 764.0125 | F27: 2.6 | G27: 10 | H27: =F27-(F27*(G27/100)) -> 2.34 | I27: =F27+(F27*(G27/100)) -> 2.86 | J27: -250 | K27: 250 | L27: 5 | M27: 1800 | N27: 10 | O27: =M27-(M27*(N27/100)) -> 1620 | P27: =M27+(M27*(N27/100)) -> 1980 | Q27: 5 | R27: Yes | S27: -116 | T27: -0.4 | U27: Select AST / CH 1 | V27: Cable | W27: TR | X27: TR | Y27: -0.4
D28: 769.0625 | E28: 769.0125 | F28: 2.6 | G28: 10 | H28: 2.34 | I28: 2.86 | J28: -250 | K28: 250 | L28: 5 | M28: 1800 | N28: 10 | O28: 1620 | P28: 1980 | Q28: 5 | R28: Yes | S28: -116 | T28: -0.4 | U28: Select AST / CH 2 | V28: Cable | W28: TR | X28: TR | Y28: -0.4
D29: 775.9375 | E29: 775.9875 | F29: 2.6 | G29: 10 | H29: 2.34 | I29: 2.86 | J29: -250 | K29: 250 | L29: 5 | M29: 1800 | N29: 10 | O29: 1620 | P29: 1980 | Q29: 5 | R29: Yes | S29: -116 | T29: -0.4 | U29: Select AST / CH 3 | V29: Cable | W29: TR | X29: TR | Y29: -0.4
D30: 851.0625 | E30: 794.0125 | F30: 2.6 | G30: 10 | H30: 2.34 | I30: 2.86 | J30: -250 | K30: 250 | L30: 5 | M30: 1800 | N30: 10 | O30: 1620 | P30: 1980 | Q30: 5 | R30: Yes | S30: -116 | T30: -0.4 | U30: Select AST / CH 4 | V30: Cable | W30: TR | X30: TR | Y30: -0.4
D31: 860.0625 | E31: 809.0125 | F31: 3.2 | G31: 10 | H31: 2.88 | I31: 3.52 | J31: -250 | K31: 250 | L31: 5 | M31: 1800 | N31: 10 | O31: 1620 | P31: 1980 | Q31: 5 | R31: Yes | S31: -116 | T31: -0.4 | U31: Select AST / CH 5 | V31: Cable | W31: TR | X31: TR | Y31: -0.4
D32: 869.9375 | E32: 823.9875 | F32: 3.2 | G32: 10 | H32: 2.88 | I32: 3.52 | J32: -250 | K32: 250 | L32: 5 | M32: 1800 | N32: 10 | O32: 1620 | P32: 1980 | Q32: 5 | R32: Yes | S32: -116 | T32: -0.4 | U32: Select AST / CH 6 | V32: Cable | W32: TR | X32: TR | Y32: -0.4
D33: 851.0625 | E33: 851.0125 | F33: 3.2 | G33: 10 | H33: 2.88 | I33: 3.52 | J33: -250 | K33: 250 | L33: 5 | M33: 1800 | N33: 10 | O33: 1620 | P33: 1980 | Q33: 5 | R33: Yes | S33: -116 | T33: -0.4 | U33: Select AST / CH 7 | V33: Cable | W33: TR | X33: TR | Y33: -0.4
D34: 860.0625 | E34: 860.0125 | F34: 3.2 | G34: 10 | H34: 2.88 | I34: 3.52 | J34: -250 | K34: 250 | L34: 5 | M34: 1800 | N34: 10 | O34: 1620 | P34: 1980 | Q34: 5 | R34: Yes | S34: -116 | T34: -0.4 | U34: Select AST / CH 8 | V34: Cable | W34: TR | X34: TR | Y34: -0.4
D35: 869.9375 | E35: 869.8875 | F35: 3.2 | G35: 10 | H35: 2.88 | I35: 3.52 | J35: -250 | K35: 250 | L35: 5 | M35: 1800 | N35: 10 | O35: 1620 | P35: 1980 | Q35: 5 | R35: Yes | S35: -116 | T35: -0.4 | U35: Select AST / CH 9 | V35: Cable | W35: TR | X35: TR | Y35: -0.4
A37: 5 | B37: Mike DMR | C37: 2 | D37: 403.025 | E37: 403.025 | F37: 4 | G37: 10 | H37: =F37-(F37*(G37/100)) -> 3.6 | I37: =F37+(F37*(G37/100)) -> 4.4 | J37: -150 | K37: 150 | L37: 5 | M37: 1944 | N37: 10 | O37: 1749.6 | P37: 2138.4 | Q37: 5 | R37: Yes | S37: -116 | T37: -0.31 | U37: Select Channel 1 | V37: Cable | W37: TR | X37: TR | Y37: -0.31
D38: 408.025 | E38: 403.025 | F38: 1.2 | G38: 10 | H38: 1.08 | I38: 1.32 | J38: -150 | K38: 150 | L38: 5 | M38: 1944 | N38: 10 | O38: 1749.6 | P38: 2138.4 | Q38: 5 | R38: Yes | S38: -116 | T38: -0.31 | U38: Select Channel 3 | V38: Cable | W38: TR | X38: TR | Y38: -0.31
A40: 6 | B40: Bill DMR | C40: 2 | D40: 467.85 | E40: 467.85 | F40: 1.2 | G40: 10 | H40: =F40-(F40*(G40/100)) -> 1.08 | I40: =F40+(F40*(G40/100)) -> 1.32 | J40: -150 | K40: 150 | L40: 5 | M40: 1944 | N40: 10 | O40: 1749.6 | P40: 2138.4 | Q40: 5 | R40: Yes | S40: -116 | T40: -0.31 | U40: Select Channel 7 | V40: Cable | W40: TR | X40: TR | Y40: -0.31
D41: 465.9 | E41: 470 | F41: 1.2 | G41: 10 | H41: 1.08 | I41: 1.32 | J41: -150 | K41: 150 | L41: 5 | M41: 1944 | N41: 10 | O41: 1749.6 | P41: 2138.4 | Q41: 5 | R41: Yes | S41: -116 | T41: -0.31 | U41: Select Channel 9 | V41: Cable | W41: TR | X41: TR | Y41: -0.31
A44: 7 | B44: 7-800 | C44: 9 | D44: 764.0625 | E44: 764.0125 | F44: 2.6 | G44: 40 | H44: =F44-(F44*(G44/100)) -> 1.56 | I44: =F44+(F44*(G44/100)) -> 3.64 | J44: -250 | K44: 250 | L44: 5 | M44: 1800 | N44: 10 | O44: =M44-(M44*(N44/100)) -> 1620 | P44: =M44+(M44*(N44/100)) -> 1980 | Q44: 5 | R44: Yes | S44: -100 | T44: -18.5 | U44: Select AST / CH 1 | V44: Antenna | W44: TR | X44: ANT | Y44: -35
D45: 769.0625 | E45: 769.0125 | F45: 2.6 | G45: 40 | H45: 1.56 | I45: 3.64 | J45: -250 | K45: 250 | L45: 5 | M45: 1800 | N45: 10 | O45: 1620 | P45: 1980 | Q45: 5 | R45: Yes | S45: -100 | T45: -18.5 | U45: Select AST / CH 2 | V45: Antenna | W45: TR | X45: ANT | Y45: -35
D46: 775.9375 | E46: 775.9875 | F46: 2.6 | G46: 40 | H46: 1.56 | I46: 3.64 | J46: -250 | K46: 250 | L46: 5 | M46: 1800 | N46: 10 | O46: 1620 | P46: 1980 | Q46: 5 | R46: Yes | S46: -100 | T46: -18.5 | U46: Select AST / CH 3 | V46: Antenna | W46: TR | X46: ANT | Y46: -35
D47: 851.0625 | E47: 794.0125 | F47: 2.6 | G47: 40 | H47: 1.56 | I47: 3.64 | J47: -250 | K47: 250 | L47: 5 | M47: 1800 | N47: 10 | O47: 1620 | P47: 1980 | Q47: 5 | R47: Yes | S47: -100 | T47: -18.5 | U47: Select AST / CH 4 | V47: Antenna | W47: TR | X47: ANT | Y47: -35
D48: 860.0625 | E48: 809.0125 | F48: 3.2 | G48: 40 | H48: 1.92 | I48: 4.48 | J48: -250 | K48: 250 | L48: 5 | M48: 1800 | N48: 10 | O48: 1620 | P48: 1980 | Q48: 5 | R48: Yes | S48: -100 | T48: -18.5 | U48: Select AST / CH 5 | V48: Antenna | W48: TR | X48: ANT | Y48: -35
D49: 869.9375 | E49: 823.9875 | F49: 3.2 | G49: 40 | H49: 1.92 | I49: 4.48 | J49: -250 | K49: 250 | L49: 5 | M49: 1800 | N49: 10 | O49: 1620 | P49: 1980 | Q49: 5 | R49: Yes | S49: -100 | T49: -18.5 | U49: Select AST / CH 6 | V49: Antenna | W49: TR | X49: ANT | Y49: -35
D50: 851.0625 | E50: 851.0125 | F50: 3.2 | G50: 40 | H50: 1.92 | I50: 4.48 | J50: -250 | K50: 250 | L50: 5 | M50: 1800 | N50: 10 | O50: 1620 | P50: 1980 | Q50: 5 | R50: Yes | S50: -100 | T50: -18.5 | U50: Select AST / CH 7 | V50: Antenna | W50: TR | X50: ANT | Y50: -35
D51: 860.0625 | E51: 860.0125 | F51: 3.2 | G51: 40 | H51: 1.92 | I51: 4.48 | J51: -250 | K51: 250 | L51: 5 | M51: 1800 | N51: 10 | O51: 1620 | P51: 1980 | Q51: 5 | R51: Yes | S51: -100 | T51: -18.5 | U51: Select AST / CH 8 | V51: Antenna | W51: TR | X51: ANT | Y51: -35
D52: 869.9375 | E52: 869.8875 | F52: 3.2 | G52: 40 | H52: 1.92 | I52: 4.48 | J52: -250 | K52: 250 | L52: 5 | M52: 1800 | N52: 10 | O52: 1620 | P52: 1980 | Q52: 5 | R52: Yes | S52: -100 | T52: -18.5 | U52: Select AST / CH 9 | V52: Antenna | W52: TR | X52: ANT | Y52: -35

Sheet Report
C3: Digital Radio Test Example | L3: Test Controls
C4: 8800SX SN:
C5: Radio SN: | D5: 1234 | M5: Test Menu | Q5: CH Plan
C6: Radio Model | Q6: 4
C7: Date | D7: =TODAY() -> 2021-03-31 | N7: TX Frequency
C8: Time | N8: TX Power | Q8: Mode
N9: TX Modulation Fidelity | Q9: Run Tests
C10: TX Frequency | D10: RF Error (Hz) | E10: Status | G10: Code | H10: NAC (Decimal) | N10: TX Symbol Deviation
H11: 659 | N11: TX BER | Q11: System
N12: RX Clear Tone | Q12: P25
C13: TX Frequency | D13: TX Power (W) | E13: Status | N13: Plots
M16: CH | N16: Include
M17: 1
M18: 2
M19: 3
M20: 4
M21: 5
M22: 6
M23: 7
C24: TX Frequency | D24: Mod Fid / FSK (%) | E24: Status | G24: Test Configuration | M24: 8
G25: Coupling | M25: 9
G26: Gen Cable Loss
G27: Rec Cable Loss | L27: Note: Items highlighted in Yellow require user input.
G28: Input Port
G29: Output Port
G30: RX Test Level
C35: TX Frequency | D35: Symbol Deviation (Hz) | E35: Status
C46: TX Frequency | D46: TX BER (%) | E46: Status | G46: RX Frequency | H46: Clear Tone | I46: Status
B57: Total Test Time

Sheet Version
A1: Version 1.1.0
A2: 03/17/2021
A4: VIP Tool Version Release Notes are available at the following link:
A5: VIP Tool Resources

Sheet Utils (hidden)
D1: Calc | E1: FALSE | G1: <beginsave> | J1: CALC | M1: TEST SPECS | P1: REPORT
D2: Test Specs | E2: TRUE | G2: <TXFreqErr> | P2: <beginsave> | Q2: 2,2
D3: Report | G3: <TXFreq_1> | P3: <TXFreqErr> | Q3: 11,3
G4: <TXFreq_2> | P4: <TXFreq_1> | Q4: 14,3
G5: <TXFreq_3> | P5: <TXFreq_2> | Q5: 15,3
G6: <TXFreq_4> | P6: <TXFreq_3> | Q6: 16,3
G7: <TXFreq_5> | P7: <TXFreq_4> | Q7: 17,3
G8: <TXFreq_6> | P8: <TXFreq_5> | Q8: 18,3
G9: <TXFreq_7> | P9: <TXFreq_6> | Q9: 19,3
E10: 342023904 | G10: <TXFreq_8> | P10: <TXFreq_7> | Q10: 20,3
G11: <TXFreq_9> | P11: <TXFreq_8> | Q11: 21,3
G12: <TestUnit> | P12: <TXFreq_9> | Q12: 22,3
G13: <RadioSN> | P13: <TXFreq_1> | Q13: 25,3
G14: <StartTime> | P14: <TXFreq_2> | Q14: 26,3
G15: <RFError> | P15: <TXFreq_3> | Q15: 27,3
G16: <TXPower_1> | P16: <TXFreq_4> | Q16: 28,3
G17: <TXPower_2> | P17: <TXFreq_5> | Q17: 29,3
G18: <TXPower_3> | P18: <TXFreq_6> | Q18: 30,3
G19: <TXPower_4> | P19: <TXFreq_7> | Q19: 31,3
E20: 882.3875 | G20: <TXPower_5> | P20: <TXFreq_8> | Q20: 32,3
G21: <TXPower_6> | P21: <TXFreq_9> | Q21: 33,3
G22: <TXPower_7> | P22: <TXFreq_1> | Q22: 36,3
G23: <TXPower_8> | P23: <TXFreq_2> | Q23: 37,3
G24: <TXPower_9> | P24: <TXFreq_3> | Q24: 38,3
E25: False | G25: <ModFid_1> | P25: <TXFreq_4> | Q25: 39,3
E26: False | G26: <ModFid_2> | P26: <TXFreq_5> | Q26: 40,3
G27: <ModFid_3> | P27: <TXFreq_6> | Q27: 41,3
G28: <ModFid_4> | P28: <TXFreq_7> | Q28: 42,3
G29: <ModFid_5> | P29: <TXFreq_8> | Q29: 43,3
E30: False | G30: <ModFid_6> | P30: <TXFreq_9> | Q30: 44,3
E31: False | G31: <ModFid_7> | P31: <TXFreq_1> | Q31: 47,3
G32: <ModFid_8> | P32: <TXFreq_2> | Q32: 48,3
G33: <ModFid_9> | P33: <TXFreq_3> | Q33: 49,3
E34: On | G34: <SymDev_1> | P34: <TXFreq_4> | Q34: 50,3
E35: Off | G35: <SymDev_2> | P35: <TXFreq_5> | Q35: 51,3
G36: <SymDev_3> | P36: <TXFreq_6> | Q36: 52,3
E37: No | G37: <SymDev_4> | P37: <TXFreq_7> | Q37: 53,3
G38: <SymDev_5> | P38: <TXFreq_8> | Q38: 54,3
G39: <SymDev_6> | P39: <TXFreq_9> | Q39: 55,3
G40: <SymDev_7> | P40: <TestUnit> | Q40: 4,4
G41: <SymDev_8> | P41: <RadioSN> | Q41: 6,4
E42: False | G42: <SymDev_9> | P42: <StartTime> | Q42: 8,4
G43: <TXBer_1> | P43: <RFError> | Q43: 11,4
E44: False | G44: <TXBer_2> | P44: <TXPower_1> | Q44: 14,4
G45: <TXBer_3> | P45: <TXPower_2> | Q45: 15,4
G46: <TXBer_4> | P46: <TXPower_3> | Q46: 16,4
G47: <TXBer_5> | P47: <TXPower_4> | Q47: 17,4
G48: <TXBer_6> | P48: <TXPower_5> | Q48: 18,4
G49: <TXBer_7> | P49: <TXPower_6> | Q49: 19,4
G50: <TXBer_8> | P50: <TXPower_7> | Q50: 20,4
G51: <TXBer_9> | P51: <TXPower_8> | Q51: 21,4
G52: <TestTime> | P52: <TXPower_9> | Q52: 22,4
G53: <TXFreqStatus> | P53: <ModFid_1> | Q53: 25,4
G54: <TXPWRStat_1> | P54: <ModFid_2> | Q54: 26,4
G55: <TXPWRStat_2> | P55: <ModFid_3> | Q55: 27,4
G56: <TXPWRStat_3> | P56: <ModFid_4> | Q56: 28,4
G57: <TXPWRStat_4> | P57: <ModFid_5> | Q57: 29,4
G58: <TXPWRStat_5> | P58: <ModFid_6> | Q58: 30,4
G59: <TXPWRStat_6> | P59: <ModFid_7> | Q59: 31,4
G60: <TXPWRStat_7> | P60: <ModFid_8> | Q60: 32,4
G61: <TXPWRStat_8> | P61: <ModFid_9> | Q61: 33,4
G62: <TXPWRStat_9> | P62: <SymDev_1> | Q62: 36,4
G63: <TXModStat_1> | P63: <SymDev_2> | Q63: 37,4
G64: <TXModStat_2> | P64: <SymDev_3> | Q64: 38,4
G65: <TXModStat_3> | P65: <SymDev_4> | Q65: 39,4
G66: <TXModStat_4> | P66: <SymDev_5> | Q66: 40,4
G67: <TXModStat_5> | P67: <SymDev_6> | Q67: 41,4
G68: <TXModStat_6> | P68: <SymDev_7> | Q68: 42,4
G69: <TXModStat_7> | P69: <SymDev_8> | Q69: 43,4
G70: <TXModStat_8> | P70: <SymDev_9> | Q70: 44,4
G71: <TXModStat_9> | P71: <TXBer_1> | Q71: 47,4
G72: <SymStat_1> | P72: <TXBer_2> | Q72: 48,4
G73: <SymStat_2> | P73: <TXBer_3> | Q73: 49,4
G74: <SymStat_3> | P74: <TXBer_4> | Q74: 50,4
G75: <SymStat_4> | P75: <TXBer_5> | Q75: 51,4
G76: <SymStat_5> | P76: <TXBer_6> | Q76: 52,4
G77: <SymStat_6> | P77: <TXBer_7> | Q77: 53,4
G78: <SymStat_7> | P78: <TXBer_8> | Q78: 54,4
G79: <SymStat_8> | P79: <TXBer_9> | Q79: 55,4
G80: <SymStat_9> | P80: <TestTime> | Q80: 57,4
G81: <TXBERStat_1> | P81: <TXFreqStatus> | Q81: 11,5
G82: <TXBERStat_2> | P82: <TXPWRStat_1> | Q82: 14,5
G83: <TXBERStat_3> | P83: <TXPWRStat_2> | Q83: 15,5
G84: <TXBERStat_4> | P84: <TXPWRStat_3> | Q84: 16,5
G85: <TXBERStat_5> | P85: <TXPWRStat_4> | Q85: 17,5
G86: <TXBERStat_6> | P86: <TXPWRStat_5> | Q86: 18,5
G87: <TXBERStat_7> | P87: <TXPWRStat_6> | Q87: 19,5
G88: <TXBERStat_8> | P88: <TXPWRStat_7> | Q88: 20,5
G89: <TXBERStat_9> | P89: <TXPWRStat_8> | Q89: 21,5
G90: <Code> | P90: <TXPWRStat_9> | Q90: 22,5
G91: <RXFreq_1> | P91: <TXModStat_1> | Q91: 25,5
G92: <RXFreq_2> | P92: <TXModStat_2> | Q92: 26,5
G93: <RXFreq_3> | P93: <TXModStat_3> | Q93: 27,5
G94: <RXFreq_4> | P94: <TXModStat_4> | Q94: 28,5
G95: <RXFreq_5> | P95: <TXModStat_5> | Q95: 29,5
G96: <RXFreq_6> | P96: <TXModStat_6> | Q96: 30,5
G97: <RXFreq_7> | P97: <TXModStat_7> | Q97: 31,5
G98: <RXFreq_8> | P98: <TXModStat_8> | Q98: 32,5
G99: <RXFreq_9> | P99: <TXModStat_9> | Q99: 33,5
G100: <Coupling> | P100: <SymStat_1> | Q100: 36,5
G101: <Gen_Cable_Loss> | P101: <SymStat_2> | Q101: 37,5
G102: <Rec_Cable_Loss> | P102: <SymStat_3> | Q102: 38,5
G103: <Input_Port> | P103: <SymStat_4> | Q103: 39,5
G104: <Output_Port> | P104: <SymStat_5> | Q104: 40,5
G105: <RX_Test_Level> | P105: <SymStat_6> | Q105: 41,5
G106: <CT_1> | P106: <SymStat_7> | Q106: 42,5
G107: <CT_2> | P107: <SymStat_8> | Q107: 43,5
G108: <CT_3> | P108: <SymStat_9> | Q108: 44,5
G109: <CT_4> | P109: <TXBERStat_1> | Q109: 47,5
G110: <CT_5> | P110: <TXBERStat_2> | Q110: 48,5
G111: <CT_6> | P111: <TXBERStat_3> | Q111: 49,5
G112: <CT_7> | P112: <TXBERStat_4> | Q112: 50,5
G113: <CT_8> | P113: <TXBERStat_5> | Q113: 51,5
G114: <CT_9> | P114: <TXBERStat_6> | Q114: 52,5
G115: <CTStat_1> | P115: <TXBERStat_7> | Q115: 53,5
G116: <CTStat_2> | P116: <TXBERStat_8> | Q116: 54,5
G117: <CTStat_3> | P117: <TXBERStat_9> | Q117: 55,5
G118: <CTStat_4> | P118: <Code> | Q118: 11,7
G119: <CTStat_5> | P119: <RXFreq_1> | Q119: 47,7
G120: <CTStat_6> | P120: <RXFreq_2> | Q120: 48,7
G121: <CTStat_7> | P121: <RXFreq_3> | Q121: 49,7
G122: <CTStat_8> | P122: <RXFreq_4> | Q122: 50,7
G123: <CTStat_9> | P123: <RXFreq_5> | Q123: 51,7
G124: <endsave> | P124: <RXFreq_6> | Q124: 52,7
G125: <TS_1> | P125: <RXFreq_7> | Q125: 53,7
G126: <TS_2> | P126: <RXFreq_8> | Q126: 54,7
G127: <Ts_3> | P127: <RXFreq_9> | Q127: 55,7
G128: <TS_4> | P128: <Coupling> | Q128: 25,8
G129: <TS_5> | P129: <Gen_Cable_Loss> | Q129: 26,8
G130: <TS_6> | P130: <Rec_Cable_Loss> | Q130: 27,8
G131: <TS_7> | P131: <Input_Port> | Q131: 28,8
G132: <CHSEL_1> | P132: <Output_Port> | Q132: 29,8
G133: <CHSEL_2> | P133: <RX_Test_Level> | Q133: 30,8
G134: <CHSEL_3> | P134: <CT_1> | Q134: 47,8
G135: <CHSEL_4> | P135: <CT_2> | Q135: 48,8
G136: <CHSEL_5> | P136: <CT_3> | Q136: 49,8
G137: <CHSEL_6> | P137: <CT_4> | Q137: 50,8
G138: <CHSEL_7> | P138: <CT_5> | Q138: 51,8
G139: <CHSEL_8> | P139: <CT_6> | Q139: 52,8
G140: <CHSEL_9> | P140: <CT_7> | Q140: 53,8
P141: <CT_8> | Q141: 54,8
P142: <CT_9> | Q142: 55,8
P143: <CTStat_1> | Q143: 47,9
P144: <CTStat_2> | Q144: 48,9
P145: <CTStat_3> | Q145: 49,9
P146: <CTStat_4> | Q146: 50,9
P147: <CTStat_5> | Q147: 51,9
P148: <CTStat_6> | Q148: 52,9
P149: <CTStat_7> | Q149: 53,9
P150: <CTStat_8> | Q150: 54,9
P151: <CTStat_9> | Q151: 55,9
P152: <endsave> | Q152: 57,10
P153: <TS_1> | Q153: 7,13
P154: <TS_2> | Q154: 8,13
P155: <Ts_3> | Q155: 9,13
P156: <TS_4> | Q156: 10,13
P157: <TS_5> | Q157: 11,13
P158: <TS_6> | Q158: 12,13
P159: <TS_7> | Q159: 13,13
P160: <CHSEL_1> | Q160: 17,14
P161: <CHSEL_2> | Q161: 18,14
P162: <CHSEL_3> | Q162: 19,14
P163: <CHSEL_4> | Q163: 20,14
P164: <CHSEL_5> | Q164: 21,14
P165: <CHSEL_6> | Q165: 22,14
P166: <CHSEL_7> | Q166: 23,14
P167: <CHSEL_8> | Q167: 24,14
P168: <CHSEL_9> | Q168: 25,14
